[Event "26th Hit Open-A 2022"]
[Site "Nova Gorica"]
[Date "2022.09.20"]
[Round "7.3"]
[White "Wadsworth, Matthew J"]
[Black "Royal, Shreyas"]
[Result "1-0"]
[ECO "A11"]
[WhiteElo "2423"]
[BlackElo "2412"]
[Annotator "ChessBase"]
[PlyCount "83"]
[EventDate "2022.09.16"]
[EventType "swiss"]
[EventCountry "SLO"]
[SourceTitle "playchess.com"]
[Source "ChessBase"]
[SourceQuality "1"]
[TimeControl "5400+30"]

1. Nf3 {[%emt 0:00:03]} d5 {[%emt 0:00:08]} 2. g3 {[%emt 0:00:14]} Bg4 {[%emt 0:00:06]} 3. Bg2 {[%emt 0:00:09]} c6 {[%emt 0:00:09]} 4. c4 {[%emt 0:00:46]} e6 {[%emt 0:00:06]} 5. Qb3 {[%emt 0:00:16]} Qb6 {[%emt 0:01:25]} 6. d3 {[%emt 0:00:08]} Nd7 {[%emt 0:02:27]} 7. Be3 {[%emt 0:00:18]} Qxb3 {[%emt 0:00:09]} 8. axb3 {[%emt 0:00:18]} a6 {[%emt 0:00:32]} 9. cxd5 {[%emt 0:08:04]} exd5 {[%emt 0:02:04]} 10. Nd4 {[%emt 0:00:57]} Ngf6 {[%emt 0:03:20]} 11. h3 {[%emt 0:04:01]} Bh5 {[%emt 0:00:39]} 12. f4 {[%emt 0:04:12]} Bb4+ {[%emt 0:12:41]} 13. Nd2 {[%emt 0:05:22]} Bg6 {[%emt 0:06:42]} 14. f5 {[%emt 0:04:59]} c5 {[%emt 0:00:06]} 15. fxg6 {[%emt 0:00:45]} cxd4 {[%emt 0:00:05]} 16. gxf7+ {[%emt 0:00:06]} Kxf7 {[%emt 0:00:06]} 17. Bxd4 {[%emt 0:00:07]} Rac8 {[%emt 0:01:20]} 18. Kd1 {[%emt 0:00:58]} Rc6 {[%emt 0:01:59]} 19. Rf1 {[%emt 0:03:35]} Ke7 {[%emt 0:02:16]} 20. g4 {[%emt 0:06:27]} h6 {[%emt 0:01:40]} 21. e4 {[%emt 0:04:39]} dxe4 {[%emt 0:10:16]} 22. Nxe4 {[%emt 0:01:38]} Rc7 {[%emt 0:01:17]} 23. Rc1 {[%emt 0:06:40]} Rxc1+ {[%emt 0:13:06]} 24. Kxc1 {[%emt 0:02:52]} Rd8 {[%emt 0:00:09]} 25. Ng3 {[%emt 0:02:28]} Nc5 {[%emt 0:02:08]} 26. Nf5+ {[%emt 0:00:06]} Kf8 {[%emt 0:00:09]} 27. Kc2 {[%emt 0:01:22]} Re8 {[%emt 0:07:03]} 28. Rf2 {[%emt 0:03:06]} Rc8 {[%emt 0:02:39]} 29. Bc3 {[%emt 0:00:57]} a5 {[%emt 0:01:29]} 30. Nd6 {[%emt 0:15:48]} Rc7 {[%emt 0:04:21]} 31. Ne4 {[%emt 0:05:17]} Ncxe4 {[%emt 0:00:55]} 32. Bxe4 {[%emt 0:00:06]} Ke7 {[%emt 0:00:16]} 33. Bg2 {[%emt 0:00:48]} Kd6 {[%emt 0:01:39]} 34. Kd2 {[%emt 0:00:59]} Nd5 {[%emt 0:06:25]} 35. Bxd5 {[%emt 0:01:18]} Kxd5 {[%emt 0:00:06]} 36. Bxb4 {[%emt 0:00:07]} axb4 {[%emt 0:00:07]} 37. Rf4 {[%emt 0:00:03]} g5 {[%emt 0:00:59]} 38. Rxb4 {[%emt 0:00:09]} Rf7 {[%emt 0:00:03]} 39. Rb6 {[%emt 0:02:34]} Rh7 {[%emt 0:00:05]} 40. Rg6 {[%emt 0:01:07]} Kd4 {[%emt 0:00:19]} 41. b4 {[%emt 0:00:52]} Rf7 {[%emt 0:01:02]} 42. Rd6+ {[%emt 0:00:10]} 1-0

[Event "26th Hit Open-A 2022"]
[Site "Nova Gorica"]
[Date "2022.09.20"]
[Round "7.4"]
[White "Sonis, Francesco"]
[Black "Thavandiran, Shiyam"]
[Result "1-0"]
[ECO "E69"]
[WhiteElo "2542"]
[BlackElo "2363"]
[Annotator "TA"]
[PlyCount "75"]
[EventDate "2022.09.16"]
[EventType "swiss"]
[EventCountry "SLO"]
[SourceTitle "playchess.com"]
[Source "ChessBase"]
[SourceQuality "1"]
[TimeControl "5400+30"]

{[%evp 20,75,64,21,43,22,77,62,86,0,22,35,44,35,45,38,80,92,124,106,102,78,118,114,127,114,117,111,161,162,167,131,150,134,155,125,140,74,62,63,66,72,116,102,100,87,435,409,413,393,374,64,64,63,710,652,787,479]} 1. Nf3 {[%emt 0:00:02]} Nf6 {[%emt 0:02:53]} 2. g3 {[%emt 0:00:06]} g6 {[%emt 0:00:20]} 3. c4 {[%emt 0:00:14]} Bg7 {[%emt 0:00:37]} 4. Bg2 {[%emt 0:00:05]} O-O {[%emt 0:00:06]} 5. O-O {[%emt 0:00:03]} d6 {[%emt 0:00:30]} 6. d4 {[%emt 0:00:04]} Nbd7 {[%emt 0:00:13]} 7. Nc3 {[%emt 0:00:08]} e5 {[%emt 0:00:11]} 8. e4 {[%emt 0:00:04]} c6 {[%emt 0:00:27]} 9. h3 {[%emt 0:00:28]} exd4 {[%emt 0:00:39]} 10. Nxd4 {[%emt 0:00:06]} Qb6 {[%emt 0:00:21]} 11. Nc2 {[%emt 0:03:53] CPLX 2.3 43 (Nd4-e2) (=43)} Ne8 {[%emt 0:09:34] CPLX 2.5 22 (Nd7-c5) (=22). E69: King's Indian: Fianchetto: 6...Nbd7 7 0-0 e5 8 e4 c6 9 h3.} 12. Bd2 {[%emt 0:06:32][%cal Bc1d2,Bd2e3,Be3d4][%mdl 32] CPLX 2.5 21 (Nc2-e3) (=32)} Ne5 {[%emt 0:06:13] RELBLUND 55 (a7-a5) (=39)} (12... a5 $11) 13. b3 $1 $16 {[%emt 0:00:15] DEEPSTRONG} f5 {[%emt 0:01:05] [#] CPLX 3.0 24 (Ne5-d3) (=34). White is slightly better.} 14. Kh1 $146 {[%emt 0:11:53] MISSDEEP-Nc2-e3 86 (Nc2-e3) (=38)} (14. Ne3 $1 $16) ({Predecessor:} 14. Rc1 Nf6 15. exf5 Bxf5 16. Be3 Qc7 17. Nd4 Bd7 18. Qd2 Rae8 19. Rcd1 a6 20. Kh2 {1-0 (33) Arkell,K (2450)-Kalegin,E (2474) Katerini 2014}) 14... Nf6 {[%emt 0:22:02] MISS-Ne5-d3 22 (Ne5-d3) (=31)} (14... Nd3 $5 {[%cal Rd3f2]} 15. Qe2 Nc5 $11) 15. f4 {[%emt 0:09:35] CPLX 2.6} Nf7 {[%emt 0:00:19] BESTDEEP} 16. Be3 {[%emt 0:05:32] CPLX 2.5} Qa5 {[%emt 0:08:46] CPLX 2.8 10 (Qb6-d8) (=22)} 17. Bd4 $36 {[%emt 0:00:39][%mdl 2048] Black is under pressure. BESTDEEP} Be6 {[%emt 0:14:24] CPLX 3.1 42 (Rf8-e8) (=25)} 18. exf5 {[%emt 0:02:48] CPLX 3.1} gxf5 {[%emt 0:01:39] CPLX 3.6 32 (Qa5xf5) (=26)} 19. Ne3 {[%emt 0:01:23] CPLX 3.1 18 (Qd1-d3) (=19)} Rae8 {[%emt 0:02:26] CPLX 2.9 0 (Rf8-e8) (=23)} (19... c5 $2 20. Bxf6 Bxf6 21. Ncd5 $18) 20. Qd3 {[%emt 0:04:51][%cal Ob3b4] CPLX 3.0 24 (Ra1-b1) (=19)} Nh5 {[%emt 0:12:24][%cal Of7e5] [#] CPLX 3.0 40 (Nf7-e5) (=25)} 21. Kh2 $1 {[%emt 0:00:22] CPLX 3.2} Bc8 {[%emt 0:03:53] CPLX 3.4 13 (Nf7-e5) (=24)} 22. Bxg7 {[%emt 0:03:32] CPLX 3.4 13 (Nc3-e2) (=17)} Nxg7 {[%emt 0:00:08] RECAPT} 23. Rae1 {[%emt 0:02:20] CPLX 2.5} Re7 {[%emt 0:04:19] CPLX 2.7 50 (Bc8-d7) (=24)} (23... Bd7 $16) 24. b4 $18 {[%emt 0:03:27] BESTDEEP} Qd8 {[%emt 0:00:08] BESTDEEP} (24... Qxb4 $2 25. Nc2 Rxe1 26. Nxb4 $18) 25. Nc2 {[%emt 0:00:26] CPLX 2.5 36 (Nc3-e2) (=16)} Rxe1 {[%emt 0:00:30] CPLX 2.5 19 (a7-a6) (=22)} 26. Rxe1 {[%emt 0:00:02] RECAPT} Re8 {[%emt 0:00:08] CPLX 2.2 21 (Bc8-d7) (=22)} 27. Rd1 {[%emt 0:00:11] White has more active pieces. CPLX 2.4 30 (Re1xe8) (=16)} h5 {[%emt 0:02:23] CPLX 2.2 15 (a7-a6) (=21)} 28. Bf3 {[%emt 0:00:57] CPLX 2.3 66 (b4-b5) (=19)} (28. b5 $142) 28... h4 $16 {[%emt 0:00:19] CPLX 2.4} 29. Rg1 {[%emt 0:00:41] CPLX 2.7} hxg3+ {[%emt 0:00:24] CPLX 2.6 3 (Kg8-f8) (=19)} 30. Rxg3 {[%emt 0:00:06] Threatens to win with Qd4. RECAPT} Qf6 {[%emt 0:00:19] CPLX 3.3 44 (Qd8-h4) (=21)} 31. b5 {[%emt 0:01:54] BESTDEEP} Bd7 {[%emt 0:01:28] CPLX 3.7 0 (Nf7-d8) (=20)} 32. Nd4 {[%emt 0:04:28][%cal Rb5c6] CPLX 3.7 13 (Nc2-b4) (=16)} Rc8 {[%emt 0:00:26][%mdl 8192] MISSDEEP-Nf7-d8 348 (Nf7-d8) (=35)} (32... Nd8 $16 {is more resistant.}) 33. bxc6 $18 {[%emt 0:09:46] CPLX 3.7} bxc6 {[%emt 0:00:04] [#] RECAPT} 34. Bxc6 $1 {[%emt 0:00:11][%mdl 512] RECAPT} Bxc6 {[%emt 0:01:22] RECAPT} 35. Qxf5 {[%emt 0:00:19] Dancing on a razor blade. RELBLUND 310 (Nd4xc6) (=26)} ({Resist} 35. Nxf5 Kh8 36. Rxg7 Re8 $18) ({White should try} 35. Nxc6 $18 {Hoping for Nd5.} Rxc6 36. Nd5) 35... Qxd4 $14 {[%emt 0:02:28] BESTDEEP=>BLUNDERREACT} (35... Qxf5 $2 36. Nxf5 Kf8 37. Rxg7 $16) 36. Qxc8+ {[%emt 0:00:04] EASY} Kh7 $2 {[%emt 0:00:02][%mdl 8192] EVAL 400 (Nf7-d8) (=45)} (36... Nd8 $14 37. Qxd8+ Kh7 38. Qh4+ Kg8 39. Qd8+ Kh7) 37. Qxc6 $18 {[%emt 0:00:06] Strongly threatening Ne4. EASY} Nf5 {[%emt 0:01:29] EVAL 135 (Qd4-d2) (=48)} 38. Qe4 {[%emt 0:00:47] Weighted Error Value: White=0.32/Black=0.34} 1-0

[Event "26th Hit Open-A 2022"]
[Site "Nova Gorica"]
[Date "2022.09.20"]
[Round "7.5"]
[White "Thybo, Jesper Sondergaard"]
[Black "Manish Anto Cristiano F"]
[Result "0-1"]
[ECO "B53"]
[WhiteElo "2516"]
[BlackElo "2249"]
[Annotator "TA"]
[PlyCount "136"]
[EventDate "2022.09.16"]
[EventType "swiss"]
[EventCountry "SLO"]
[SourceTitle "playchess.com"]
[Source "ChessBase"]
[SourceQuality "1"]
[TimeControl "5400+30"]

{[%evp 9,136,14,26,-10,-10,-4,-16,-13,8,15,12,8,0,9,14,12,12,0,0,0,18,18,18,22,23,0,0,0,0,0,0,-14,0,-47,-64,-100,-97,-116,-116,-116,-116,-116,-72,-70,-70,-160,-160,-160,-160,-187,-160,-160,-160,-177,-184,-172,-169,-190,-147,-190,-191,-183,-175,-218,-101,-102,-102,-101,-60,-60,-63,-67,-33,-82,-75,-141,-141,-141,-141,-141,-141,-141,-141,-141,-141,-141,-141,-170,-210,-143,-192,-204,-204,-173,0,-210,-206,-203,-203,-184,-172,-137,-96,-89,-97,-510,-462,-2923,-3535,-29956,-29956,-12831,-12831,-12815,-11565,-6558,-6060,-2286,-360,-29978,-29979,-29980,-29981,-29981,-29982,-29982,-29983,-29982,-29983]} 1. e4 {[%emt 0:00:14]} c5 {[%emt 0:00:11]} 2. Nf3 {[%emt 0:00:10]} d6 {[%emt 0:00:32]} 3. d4 {[%emt 0:00:28]} cxd4 {[%emt 0:00:34]} 4. Qxd4 {[%emt 0:00:41]} Nf6 {[%emt 0:00:22]} 5. Be2 {[%emt 0:00:43]} g6 {[%emt 0:00:09] BESTDEEP} 6. h3 {[%emt 0:01:05] CPLX 2.8 36 (0-0) (=36). B53: Sicilian: 2...d6: Lines with Qxd4.} Bg7 {[%emt 0:00:25] BESTDEEP} 7. O-O {[%emt 0:00:40] CPLX 2.8 0 (Nb1-c3) (=18)} O-O {[%emt 0:00:23] BESTDEEP} 8. Rd1 {[%emt 0:01:50] CPLX 2.5 0 (Nb1-c3) (=12). The position is equal.} Be6 {[%emt 0:05:13] [#] MISSDEEP-Nb8-d7 21 (Nb8-d7) (=5)} 9. Qe3 $146 {[%emt 0:10:12] CPLX 2.5 0 (e4-e5) (=9)} (9. e5 {looks sharper.} Ne8 10. Qh4 Qc8 11. Ng5) ({Predecessor:} 9. Nc3 Nbd7 10. Qe3 Qc7 11. Nd4 Bc4 12. Bxc4 Qxc4 13. b3 Qc5 14. Bb2 Rfe8 15. Na4 {0-1 (40) Schlegel,I (2249)-Baum,J (2355) Bassano del Grappa 2022}) 9... Qb6 {[%emt 0:00:09] BESTDEEP} 10. Qxb6 {[%emt 0:01:38] CPLX 2.6 4 (Nb1-c3) (=8)} axb6 {[%emt 0:00:07] RECAPT} 11. Nc3 {[%emt 0:00:21] CPLX 2.2} Rc8 {[%emt 0:00:13][%cal Oc8c3] BESTDEEP} 12. Nd4 {[%emt 0:08:51] BESTDEEP} Bc4 {[%emt 0:02:52][%cal Of6e4] BESTDEEP} 13. Kf1 {[%emt 0:03:40] CPLX 2.6 12 (Be2-d3) (=7)} Bxe2+ {[%emt 0:07:48] BESTDEEP} 14. Kxe2 {[%emt 0:00:58] RECAPT} Rxc3 {[%emt 0:03:19] CPLX 2.2 18 (Rc8-c4) (=4)} 15. bxc3 {[%emt 0:00:11] White wants to play f3. RECAPT} Nxe4 {[%emt 0:00:07] CPLX 2.8} 16. Bd2 {[%emt 0:02:38] CPLX 3.1} Nc6 {[%emt 0:05:30] CPLX 3.2 1 (Nb8-d7) (=3)} 17. f3 {[%emt 0:02:57] CPLX 3.4 23 (Nd4-b5) (=6)} Nxd2 {[%emt 0:12:52] CPLX 3.6} 18. Rxd2 {[%emt 0:00:32] CPLX 3.7 0 (Ke2xd2) (=6)} Ra4 {[%emt 0:00:25] CPLX 2.9} 19. Nb5 {[%emt 0:01:38] BESTDEEP} Na7 {[%emt 0:00:21] BESTDEEP} 20. Nd4 {[%emt 0:08:42] BESTDEEP} Nc6 {[%emt 0:01:28][%cal Rc6d4] CPLX 2.8 14 (e7-e5) (=3)} 21. Nxc6 {[%emt 0:09:26] CPLX 2.9 47 (Nd4-b5) (=8)} (21. Nb5 $11 {deserves consideration.}) 21... bxc6 $11 {[%emt 0:00:09][%mdl 4096] Endgame KRR-KRB. RECAPT} 22. Rd3 {[%emt 0:00:36] CPLX 2.4 36 (Ke2-d3) (=9)} b5 {[%emt 0:08:23] CPLX 2.4} 23. Re3 {[%emt 0:08:07] CPLX 2.4 19 (a2-a3) (=10)} e6 {[%emt 0:05:03] CPLX 2.5} 24. g3 {[%emt 0:07:16] CPLX 2.5 0 (Ra1-b1) (=9)} d5 {[%emt 0:00:43] BESTDEEP} 25. Rb1 {[%emt 0:01:28] Against b4. BESTDEEP} Rxa2 {[%emt 0:03:05] CPLX 2.6 44 (h7-h5) (=5)} 26. Kd3 {[%emt 0:02:08] EASY} Ra3 {[%emt 0:02:50] CPLX 2.8 0 (Ra2-a4) (=4)} 27. Rb3 {[%emt 0:00:20] CPLX 2.9 90 (Kd3-d2) (=12)} (27. Kd2 $1 $15) 27... Ra1 $1 $17 {[%emt 0:00:14] CPLX 3.1} 28. f4 {[%emt 0:00:36] CPLX 2.8 0 (Kd3-e2) (=12)} Bf8 {[%emt 0:03:22] BESTDEEP} 29. Kd2 {[%emt 0:01:12] CPLX 2.7 27 (Re3-f3) (=12)} Rg1 {[%emt 0:01:17] CPLX 2.6 27 (Ra1-h1) (=5)} 30. Rf3 {[%emt 0:03:04] CPLX 2.6} Bd6 {[%emt 0:02:58] CPLX 2.7} 31. Rb2 {[%emt 0:01:02] CPLX 2.7 17 (Kd2-e2) (=12)} Ra1 {[%emt 0:02:24] Inhibits Ra2. CPLX 2.6} 32. Ke2 {[%emt 0:00:47] CPLX 2.7} h5 {[%emt 0:03:18] BESTDEEP} 33. Rf1 {[%emt 0:00:47] CPLX 2.6 21 (c3-c4) (=12)} Ra3 {[%emt 0:01:27] CPLX 2.9 43 (Ra1-a4) (=6)} 34. Rb3 {[%emt 0:01:26] CPLX 2.5 43 (Rf1-f3) (=13)} Ra4 {[%emt 0:02:51] BESTDEEP} 35. h4 {[%emt 0:00:26] CPLX 2.5 0 (Rb3-b1) (=13)} Ra2 {[%emt 0:02:24] CPLX 2.5 8 (Kg8-g7) (=6)} 36. Kd3 {[%emt 0:00:59] CPLX 2.6 43 (Rb3-b1) (=13)} e5 {[%emt 0:03:42] CPLX 2.8 117 (Bd6-c5) (=9)} (36... Bc5 $19 {has better winning chances. Hoping for ...Kg7.} 37. Rbb1 Kf8) 37. fxe5 {[%emt 0:00:05] CPLX 3.1=>BLUNDERREACT} Bxe5 {[%emt 0:00:07] RECAPT} 38. Rg1 {[%emt 0:00:03] CPLX 2.8} Ra4 {[%emt 0:00:12] Black is much more active. CPLX 2.8 41 (Kg8-g7) (=10)} 39. Rb4 $1 {[%emt 0:00:17] DEEPSTRONG} Ra3 {[%emt 0:01:59] CPLX 2.9} 40. Rb3 {[%emt 0:00:44] CPLX 2.9} Ra7 {[%emt 0:02:31] CPLX 3.0 34 (Ra3-a8) (=10)} 41. Rbb1 {[%emt 0:01:52] CPLX 2.7 49 (g3-g4) (=13)} (41. g4 $1 $15) 41... Kg7 $1 {[%emt 0:01:33] DEEPSTRONG} 42. Rbe1 {[%emt 0:02:06] CPLX 2.7 66 (g3-g4) (=14)} (42. g4 $142) 42... Kf6 $1 {[%emt 0:01:22] DEEPSTRONG} 43. Re3 {[%emt 0:02:36] CPLX 2.8 0 (Re1-f1) (=14)} Kf5 $1 {[%emt 0:01:59] BESTDEEP} 44. Rf1+ {[%emt 0:00:18] EASY} Ke6 {[%emt 0:00:05] EASY} 45. Rg1 {[%emt 0:02:37] CPLX 3.1 0 (Kd3-d2) (=13)} Ra4 {[%emt 0:00:43] BESTDEEP} 46. Rf1 {[%emt 0:00:30] CPLX 3.0 0 (Rg1-e1) (=13)} Rg4 {[%emt 0:00:29] CPLX 3.1 0 (f7-f6) (=9)} 47. Rff3 {[%emt 0:02:15] CPLX 3.2} f6 {[%emt 0:00:10] CPLX 3.1} 48. Rf4 {[%emt 0:01:09] CPLX 3.0 29 (Kd3-d2) (=13)} Kd6 {[%emt 0:00:51] CPLX 3.4 0 (Ke6-d7) (=8)} 49. Rxg4 {[%emt 0:00:54] EASY} hxg4 $19 {[%emt 0:00:02] KR-KB. RECAPT} 50. Ke2 {[%emt 0:00:47] BESTDEEP} Kc5 {[%emt 0:00:07] CPLX 2.4 0 (Kd6-c7) (=8)} 51. Kd3 {[%emt 0:00:03] CPLX 2.6 0 (Re3-d3) (=12)} Kd6 {[%emt 0:04:50] CPLX 2.6 173 (Kc5-b6) (=12)} 52. Ke2 $1 {[%emt 0:00:59] DEEPSTRONG=>BLUNDERREACT} c5 {[%emt 0:04:39][%cal Bc6c5,Bc5c4][%mdl 32] BESTDEEP} 53. Kd2 {[%emt 0:01:02] CPLX 2.5} c4 {[%emt 0:00:15] CPLX 2.4 0 (Kd6-c6) (=11)} 54. Kd1 {[%emt 0:01:04] CPLX 2.5 0 (Kd2-e2) (=11)} Ke6 {[%emt 0:00:39] CPLX 2.5 12 (Kd6-c6) (=11)} 55. Kd2 {[%emt 0:01:04] CPLX 2.6 0 (Re3-e1) (=11)} Kf7 {[%emt 0:00:24] BESTDEEP} 56. Ke2 {[%emt 0:01:11] CPLX 2.5} Kg7 {[%emt 0:00:57] CPLX 2.5 0 (Kf7-e8) (=11)} 57. Kf2 $2 {[%emt 0:04:47][%mdl 8192] [#] Now White is beyond hope. RELBLUND 400 (Ke2-f1) (=19)} (57. Kf1 $17 {is a better chance.}) 57... b4 $1 {[%emt 0:02:11] DEEPSTRONG=>BLUNDERREACT} 58. cxb4 {[%emt 0:02:07] MISSDEEP-Re3-e1 400 (Re3-e1) (=26)} (58. Re1 $142 bxc3 59. Ke2) 58... Bd4 {[%emt 0:00:04] EASY} 59. c3 {[%emt 0:01:30] RELBLUND 400 (Kf2-e2) (=33)} Bb6 {[%emt 0:00:05] CPLX 3.0 0 (Bd4xe3) (=10)} 60. Ke2 {[%emt 0:01:13] BESTDEEP} Bxe3 {[%emt 0:00:05] CPLX 2.6} 61. Kxe3 {[%emt 0:00:04] [#] KP-KP} Kf7 $1 {[%emt 0:00:38]} 62. Kd4 {[%emt 0:01:37]} Ke6 {[%emt 0:00:18] ...f5 is the strong threat.} 63. Kc5 {[%emt 0:00:27]} f5 {[%emt 0:00:36][%cal Of5f4] ( -> ...f4!)} 64. Kc6 $2 {[%emt 0:00:45]} (64. b5 $19 f4 65. Kc6 (65. gxf4 $2 g3 $19)) 64... d4 {[%emt 0:00:07] Black mates.} 65. b5 {[%emt 0:00:06]} d3 {[%emt 0:00:09]} 66. b6 {[%emt 0:00:14]} d2 {[%emt 0:00:04]} 67. b7 {[%emt 0:00:02]} d1=Q {[%emt 0:00:09]} 68. b8=Q {[%emt 0:00:12]} Qd5+ {[%emt 0:00:07] Weighted Error Value: White=0.38/Black=0.10 (very precise)} ({Not} 68... Qf3+ 69. Kb5 $15) 0-1